bitfinex/quotes_SOLUSD_20220227
["timestamp","ask_amount","ask_price","bid_price","bid_amount"]
[1645974352679,1.4964812,89.609,89.524,0.25]
[1645974353280,1.4964812,89.609,89.524,2.99678921]
[1645974353482,2.74678921,89.61,89.526,111.5]
[1645974353681,2.74678921,89.61,89.528,111.5]
[1645974353881,1.86335638,89.616,89.53,111.5]
[1645974354083,6.0,89.617,89.532,111.5]
[1645974354280,6.0,89.617,89.534,111.5]
[1645974354483,6.0,89.617,89.536,145.97089791]
[1645974354681,1.36621235,89.629,89.538,111.5]
[1645974354882,1.36621235,89.629,89.54,111.5]
[1645974355083,2.74678921,89.628,89.541,6.25]
[1645974355384,2.74678921,89.628,89.542,111.5]
[1645974355583,2.74678921,89.628,89.543,29.859]
[1645974357891,1.36621235,89.629,89.544,111.75]
[1645974358094,1.84735436,89.659,89.546,111.5]
[1645974358293,1.56652583,89.679,89.561,111.5]
[1645974358495,1.56652583,89.679,89.56,16.13]
[1645974358496,1.63391482,89.687,89.565,178.57]
[1645974358692,1.63391482,89.687,89.57,67.07]
[1645974358892,1.63391482,89.687,89.6,16.7379]
[1645974359194,6.04571615,89.709,89.603,111.5]
[1645974359392,6.0,89.708,89.605,111.5]
[1645974359595,6.0,89.708,89.607,111.5]
[1645974359796,6.0,89.708,89.609,111.5]
[1645974359997,6.0,89.708,89.61,117.75]
[1645974360213,16.7405,89.7,89.61,0.25]
[1645974360425,1.64719858,89.699,89.604,6.0]
[1645974360616,6.24418402,89.698,89.602,30.96078875]
[1645974361015,6.24418402,89.698,89.603,6.0]
[1645974361714,1.78318402,89.698,89.603,6.0]
[1645974362517,16.7429,89.69,89.603,6.0]
[1645974362716,1.36976639,89.689,89.603,6.0]
[1645974363617,1.66747377,89.698,89.602,30.96078875]
[1645974363816,4.461,89.697,89.602,30.96078875]
[1645974364017,7.20778921,89.697,89.602,30.96078875]
[1645974364222,7.20778921,89.697,89.603,6.0]
[1645974364416,2.74678921,89.697,89.603,6.0]
[1645974364621,1.66747377,89.698,89.604,114.49678921]
[1645974364817,1.66747377,89.698,89.606,111.5]
[1645974365018,1.66747377,89.698,89.608,111.5]
[1645974365218,1.66747377,89.698,89.61,111.5]
[1645974365418,1.66747377,89.698,89.611,6.25]
[1645974366019,1.66747377,89.698,89.612,24.5494]
[1645974366217,1.66747377,89.698,89.613,6.25]
[1645974367123,1.66747377,89.698,89.614,111.5]
[1645974367321,1.66747377,89.698,89.616,111.5]
[1645974367520,1.66747377,89.698,89.618,111.5]
[1645974367721,1.66747377,89.698,89.62,111.5]
[1645974367924,1.66747377,89.698,89.622,111.5]
[1645974368125,1.66747377,89.698,89.624,111.5]
[1645974368322,1.66747377,89.698,89.626,111.5]
[1645974368622,1.66747377,89.698,89.617,32.45692602]
[1645974368623,1.66747377,89.698,89.628,111.5]
[1645974368822,1.66747377,89.698,89.631,29.19409851]
[1645974369023,1.66747377,89.698,89.632,28.8284]
[1645974369625,1.42405911,89.71,89.633,111.5]
[1645974369823,2.1996901,89.712,89.635,111.5]
[1645974370023,2.1996901,89.712,89.637,111.5]
[1645974370224,2.1996901,89.712,89.639,111.5]
[1645974370427,2.1996901,89.712,89.641,111.5]
[1645974370726,2.1996901,89.712,89.643,111.5]
[1645974370923,2.1996901,89.712,89.646,27.37808283]
[1645974371127,2.1996901,89.712,89.647,117.75]
[1645974371523,2.1996901,89.712,89.649,111.5]
[1645974371722,2.1996901,89.712,89.65,0.25]
[1645974371922,1.39330932,89.738,89.651,111.5]
[1645974372124,1.39330932,89.738,89.653,111.5]
[1645974372326,1.39330932,89.738,89.655,111.5]
[1645974372523,1.39330932,89.738,89.657,111.5]
[1645974372727,1.39330932,89.738,89.661,111.5]
[1645974372928,1.39330932,89.738,89.663,111.5]
[1645974373226,1.39330932,89.738,89.665,111.5]
[1645974373523,1.39330932,89.738,89.667,111.5]
[1645974373724,1.39330932,89.738,89.669,111.5]
[1645974373925,1.39330932,89.738,89.67,117.75]
[1645974374125,1.39330932,89.738,89.67,111.75]
[1645974374324,1.39330932,89.738,89.671,6.0]
[1645974374824,2.74678921,89.737,89.664,6.0]
[1645974375226,7.39914292,89.736,89.664,6.0]
[1645974375726,2.74678921,89.735,89.664,6.0]
[1645974376326,16.7348,89.73,89.664,6.0]
[1645974376527,7.39914292,89.736,89.664,6.0]
[1645974378532,1.39914292,89.736,89.664,6.0]
[1645974378732,1.50480518,89.753,89.665,114.49678921]
[1645974378934,6.0,89.752,89.667,111.5]
[1645974379134,8.74678921,89.752,89.669,111.5]
[1645974379333,6.0,89.752,89.67,117.75]
[1645974379534,2.74678921,89.751,89.67,117.75]
[1645974380239,2.74678921,89.761,89.671,5.52365062]
[1645974380433,1.49442992,89.781,89.673,111.5]
[1645974380635,1.86031693,89.793,89.675,111.5]
[1645974380836,1.86031693,89.793,89.677,111.5]
[1645974381035,1.86031693,89.793,89.681,111.5]
[1645974381238,1.86031693,89.793,89.683,111.5]
[1645974381435,1.7203483,89.789,89.691,32.00021401]
[1645974381639,4.457,89.788,89.691,32.00021401]
[1645974381836,24.3766974,89.788,89.692,6.0]
[1645974382042,21.30268363,89.787,89.692,6.0]
[1645974382235,1.86320494,89.786,89.692,6.0]
[1645974382436,45.59910234,89.786,89.693,22.9761]
[1645974382741,39.63198996,89.785,89.694,6.0]
[1645974382937,16.727,89.77,89.694,6.0]
[1645974383137,1.52997876,89.769,89.695,23.3278]
[1645974383344,1.52997876,89.769,89.696,6.0]
[1645974383739,1.52997876,89.769,89.697,0.25]
[1645974384638,1.52997876,89.769,89.696,6.0]
[1645974384839,1.38335301,89.759,89.691,32.00021401]
[1645974385140,22.45908177,89.768,89.691,32.00021401]
[1645974385343,6.07587638,89.767,89.691,32.00021401]
[1645974385742,1.61887638,89.767,89.692,6.0]
[1645974385941,1.66113465,89.782,89.693,24.7769]
[1645974386142,1.66113465,89.782,89.694,6.0]
[1645974386359,4.457,89.781,89.695,24.268]
[1645974386560,16.7278,89.77,89.696,6.0]
[1645974386760,1.43052375,89.769,89.696,6.0]
[1645974390469,6.0,89.768,89.695,24.268]
[1645974391068,6.0,89.768,89.696,6.0]
[1645974391468,1.43052375,89.769,89.696,6.0]
[1645974392666,1.43052375,89.769,89.695,24.268]
[1645974392869,16.7293,89.76,89.695,24.268]
[1645974393071,1.61678001,89.759,89.695,24.268]
[1645974396273,1.61678001,89.759,89.696,6.0]
[1645974396474,1.61678001,89.759,89.695,24.268]
[1645974396672,1.61678001,89.759,89.696,6.0]
[1645974397072,1.61678001,89.759,89.695,24.268]
[1645974397473,4.457,89.779,89.695,24.268]
[1645974397672,6.0,89.778,89.696,6.0]
[1645974397872,4.457,89.777,89.695,24.268]
[1645974398072,5.94060249,89.777,89.695,24.268]
[1645974398274,1.48360249,89.777,89.695,24.268]
[1645974398471,1.48360249,89.777,89.696,6.0]
[1645974399174,4.457,89.776,89.696,6.0]
[1645974399573,16.7277,89.77,89.696,6.0]
[1645974399772,1.40750362,89.769,89.696,6.0]
[1645974401279,6.0,89.768,89.696,6.0]
[1645974401676,4.457,89.785,89.697,111.5]
[1645974401878,1.49532441,89.784,89.699,111.5]
[1645974402076,1.49532441,89.784,89.701,111.5]
[1645974402280,1.49532441,89.784,89.703,111.5]
[1645974402480,1.49532441,89.784,89.705,144.8376728]
[1645974402679,1.49532441,89.784,89.707,111.5]
[1645974402879,1.49532441,89.784,89.706,6.25]
[1645974402880,1.49532441,89.784,89.709,111.5]
[1645974403080,1.49532441,89.784,89.71,6.25]
[1645974405082,1.49532441,89.784,89.711,111.5]
[1645974405282,1.49532441,89.784,89.713,111.5]
[1645974405483,1.49532441,89.784,89.715,111.5]
[1645974405682,1.49532441,89.784,89.717,111.5]
[1645974405883,1.49532441,89.784,89.72,26.29757527]
[1645974406483,1.49532441,89.784,89.721,30.2904]
[1645974406884,6.0,89.783,89.721,30.2904]
[1645974407086,1.49532441,89.784,89.722,111.5]
[1645974407286,4.456,89.817,89.724,111.5]
[1645974407485,79.0267,89.846,89.722,6.6]
[1645974407486,1.4315641,89.829,89.726,111.5]
[1645974407686,1.4315641,89.829,89.731,111.5]
[1645974407886,1.4315641,89.829,89.735,111.5]
[1645974408086,1.4315641,89.829,89.737,111.5]
[1645974408287,1.4315641,89.829,89.739,111.5]
[1645974408488,6.0,89.828,89.741,111.5]
[1645974408688,6.0,89.828,89.743,111.5]
[1645974408992,6.0,89.828,89.745,111.5]
[1645974409187,6.0,89.828,89.744,6.25]
[1645974409188,6.0,89.828,89.749,111.5]
[1645974409388,6.0,89.828,89.75,6.25]
[1645974409788,6.0,89.828,89.751,23.1922]
[1645974409991,6.0,89.828,89.753,111.5]
[1645974410190,6.0,89.828,89.755,111.5]
[1645974410390,6.0,89.828,89.757,111.5]
[1645974410689,6.0,89.828,89.759,111.5]
[1645974410888,6.0,89.828,89.76,0.25]
[1645974412494,6.0,89.828,89.76,6.25]
[1645974413098,6.0,89.828,89.76,0.25]
[1645974413295,6.0,89.828,89.756,111.5]
[1645974413494,6.0,89.828,89.758,111.5]
[1645974413693,6.0,89.828,89.759,117.75]
[1645974413893,6.0,89.828,89.76,6.25]
[1645974414496,1.4315641,89.829,89.76,6.25]
[1645974414895,1.4315641,89.829,89.761,6.0]
[1645974415097,1.4315641,89.829,89.762,31.35690856]
[1645974415296,1.4315641,89.829,89.763,30.7084]
[1645974415496,1.4315641,89.829,89.577,112.2]
[1645974415497,1.4315641,89.829,89.693,3.0177907]
[1645974415696,2.74678921,89.828,89.726,6.0]
[1645974416097,1.66360046,89.826,89.726,6.0]
[1645974416295,4.455,89.825,89.727,24.0722]
[1645974416496,16.7185,89.82,89.729,141.98511314]
[1645974416698,1.35353907,89.819,89.73,6.0]
[1645974416897,24.0858,89.818,89.73,6.0]
[1645974417098,1.44557639,89.817,89.73,6.0]
[1645974419300,1.44557639,89.817,89.731,0.25]
[1645974420199,1.44557639,89.817,89.73,6.0]
[1645974421099,16.7202,89.81,89.73,6.0]
[1645974421298,1.38595633,89.809,89.729,30.48511314]
[1645974421499,4.455,89.808,89.729,30.48511314]
[1645974421903,28.01811762,89.807,89.729,30.48511314]
[1645974422100,1.45561975,89.806,89.729,30.48511314]
[1645974422300,4.455,89.805,89.729,30.48511314]
[1645974422600,16.7238,89.79,89.729,30.48511314]
[1645974422803,5.90685889,89.789,89.729,30.48511314]
[1645974423201,26.73008921,89.804,89.729,30.48511314]
[1645974423499,1.47416239,89.799,89.731,111.5]
[1645974423699,112.2,89.813,89.733,111.5]
[1645974423700,1.61574636,89.812,89.733,111.5]
[1645974423898,4.456,89.829,89.735,111.5]
[1645974424099,1.49838934,89.831,89.741,111.5]
[1645974424299,1.49838934,89.831,89.743,145.59070813]
[1645974424602,1.76176418,89.849,89.751,111.5]
[1645974424800,1.76176418,89.849,89.763,111.5]
[1645974424999,1.76176418,89.849,89.765,111.5]
[1645974425208,1.76176418,89.849,89.767,111.5]
[1645974425399,6.0,89.848,89.768,6.25]
[1645974425599,6.0,89.848,89.768,0.25]
[1645974426400,6.0,89.848,89.767,0.25]
[1645974426801,8.74678921,89.848,89.766,6.0]
[1645974427000,4.453,89.847,89.766,6.0]
[1645974427202,15.39571135,89.847,89.765,24.0171]
[1645974427399,15.39571135,89.847,89.762,33.09885756]
[1645974427400,23.28699771,89.846,89.762,33.09885756]
[1645974427600,1.59832846,89.845,89.762,33.09885756]
[1645974427803,16.13,89.84,89.762,33.09885756]
[1645974428202,6.29664422,89.839,89.762,33.09885756]
[1645974428402,13.68950056,89.839,89.762,33.09885756]
[1645974428601,6.15728927,89.838,89.762,33.09885756]
[1645974428801,6.15728927,89.838,89.731,111.5]
[1645974429002,86.76520906,89.838,89.731,111.5]
[1645974429200,23.28699771,89.837,89.732,0.25]
[1645974429400,6.12639396,89.836,89.732,0.25]
[1645974429601,16.7166,89.83,89.732,0.25]
[1645974429903,6.22599544,89.829,89.725,111.5]
[1645974430102,19.915496,89.829,89.725,111.5]
[1645974430300,1.59047184,89.828,89.727,111.5]
[1645974430501,4.33726105,89.828,89.729,111.5]
[1645974430704,25.90278921,89.827,89.731,111.5]
[1645974430903,7.51530764,89.826,89.733,111.5]
[1645974431204,7.51530764,89.826,89.732,6.0]
[1645974431205,7.51530764,89.826,89.735,111.35603271]
[1645974431403,7.51530764,89.826,89.737,111.35603271]
[1645974431602,16.7183,89.82,89.737,111.35603271]
[1645974431804,1.63578301,89.819,89.739,111.35603271]
[1645974432003,1.63578301,89.819,89.741,111.35603271]
[1645974432509,7.45442944,89.826,89.743,111.35603271]
[1645974432806,7.45442944,89.826,89.745,111.35603271]
[1645974433005,7.45442944,89.826,89.747,111.35603271]
[1645974433207,7.45442944,89.826,89.749,111.35603271]
[1645974433408,7.45442944,89.826,89.75,6.25]
[1645974434209,6.0,89.826,89.75,6.25]
[1645974434406,1.45094765,89.837,89.751,6.0]
[1645974434610,1.45094765,89.837,89.752,52.33274499]
[1645974434808,1.45094765,89.837,89.753,6.0]
[1645974435010,16.7161,89.83,89.754,0.25]
[1645974435208,1.5903914,89.829,89.754,0.25]
[1645974436210,1.5903914,89.829,89.754,111.75]
[1645974436409,1.5903914,89.829,89.755,30.585]
[1645974436609,1.5903914,89.829,89.755,24.585]
[1645974437210,16.7183,89.82,89.755,24.585]
[1645974437410,1.81453717,89.819,89.755,24.585]
[1645974437914,6.0,89.818,89.755,24.585]
[1645974438413,6.0,89.818,89.756,6.0]
[1645974439119,6.0,89.818,89.755,24.585]
[1645974442221,16.715,89.84,89.757,111.5]
[1645974442420,1.41898837,89.835,89.759,111.5]
[1645974442619,1.41898837,89.835,89.76,6.25]
[1645974443721,1.41898837,89.835,89.76,0.25]
[1645974444022,1.41898837,89.835,89.759,117.75]
[1645974445023,134.7006,89.85,89.759,117.75]
[1645974445024,1.41849912,89.849,89.759,117.75]
[1645974445224,1.41849912,89.849,89.76,2.74678921]
[1645974445426,1.41849912,89.849,89.762,111.5]
[1645974445622,1.41849912,89.849,89.764,111.5]
[1645974445824,6.0,89.848,89.767,111.5]
[1645974446027,6.0,89.848,89.769,111.5]
[1645974446325,6.0,89.848,89.766,27.9309174]
[1645974446525,28.20059458,89.848,89.767,23.8593]
[1645974446726,5.84563742,89.847,89.767,23.8593]
[1645974447025,22.05998985,89.846,89.767,23.8593]
[1645974447227,16.7145,89.84,89.767,23.8593]
[1645974447427,5.81734792,89.839,89.767,23.8593]
[1645974447627,24.9942085,89.839,89.767,23.8593]
[1645974447826,4.57603114,89.838,89.767,23.8593]
[1645974448030,4.454,89.837,89.767,23.8593]
[1645974448228,7.20078921,89.837,89.767,23.8593]
[1645974448626,1.36898617,89.819,89.767,23.8593]
[1645974449427,6.0,89.818,89.767,23.8593]
[1645974451829,1.68485076,89.835,89.767,23.8593]
[1645974452030,6.0,89.817,89.767,23.8593]
[1645974452231,1.68485076,89.835,89.767,23.8593]
[1645974452431,6.0,89.834,89.767,23.8593]
[1645974453532,8.74678921,89.834,89.767,23.8593]
[1645974460435,16.7163,89.83,89.691,2.80797518]
[1645974460637,5.95791852,89.829,89.722,52.9015]
[1645974460836,48.80927033,89.829,89.722,52.9015]
[1645974461041,1.43534676,89.828,89.722,52.9015]
[1645974461237,4.455,89.827,89.723,32.38923985]
[1645974461440,27.74199771,89.827,89.724,6.0]
[1645974461638,1.79785552,89.826,89.724,6.0]
[1645974461838,4.455,89.825,89.724,6.0]
[1645974462039,8.61517089,89.825,89.724,6.0]
[1645974462238,2.74678921,89.824,89.724,6.0]
[1645974462439,16.13,89.82,89.724,6.0]
[1645974462640,16.7211,89.81,89.724,6.0]
[1645974462847,7.62553802,89.809,89.724,6.0]
[1645974463442,2.74678921,89.808,89.724,6.0]
[1645974463742,1.54586881,89.799,89.724,6.0]
[1645974465568,16.7237,89.79,89.723,6.0]
[1645974465766,1.70122988,89.789,89.723,6.0]
[1645974466369,1.70122988,89.789,89.724,30.83001576]
[1645974466569,1.70122988,89.789,89.725,6.0]
[1645974467670,2.74678921,89.788,89.725,6.0]
[1645974468271,6.0,89.787,89.725,6.0]
[1645974468671,2.74678921,89.786,89.725,6.0]
[1645974472273,1.70122988,89.789,89.725,6.0]
[1645974472677,1.52074084,89.808,89.725,6.0]
[1645974472875,6.0,89.807,89.725,6.0]
[1645974473175,8.74678921,89.807,89.725,6.0]
[1645974473379,2.74678921,89.806,89.725,6.0]
[1645974474174,2.74678921,89.806,89.726,111.5]
[1645974474375,2.74678921,89.806,89.728,111.5]
[1645974474676,6.0,89.807,89.728,111.5]
[1645974474677,6.0,89.807,89.729,6.25]
[1645974474974,2.74678921,89.832,89.73,111.5]
[1645974474975,4.455,89.821,89.73,111.5]
[1645974475176,6.0,89.82,89.732,111.5]
[1645974475377,6.0,89.819,89.734,111.5]
[1645974475678,1.54111976,89.829,89.735,6.25]
[1645974475879,6.0,89.828,89.736,6.25]
[1645974476078,6.0,89.828,89.737,111.5]
[1645974476276,6.0,89.828,89.738,117.75]
[1645974476479,6.0,89.828,89.739,6.25]
[1645974477477,6.0,89.828,89.74,6.0]
[1645974477678,6.0,89.828,89.741,0.25]
[1645974478881,6.0,89.828,89.74,111.75]
[1645974479084,6.0,89.828,89.742,111.5]
[1645974479383,6.0,89.828,89.744,111.5]
[1645974479681,6.0,89.828,89.746,111.5]
[1645974479881,6.0,89.828,89.748,111.5]
[1645974480081,6.0,89.828,89.749,6.0]
[1645974480985,8.74678921,89.828,89.749,6.0]
[1645974481183,8.74678921,89.828,89.748,111.5]
[1645974481386,8.74678921,89.828,89.749,6.0]
[1645974481882,6.0,89.828,89.749,6.0]
[1645974482483,6.0,89.828,89.748,111.5]
[1645974482685,6.0,89.828,89.749,6.25]
[1645974482883,6.0,89.828,89.75,111.5]
[1645974483083,6.0,89.828,89.752,111.5]
[1645974483283,6.0,89.828,89.754,111.5]
[1645974483484,16.9831,89.85,89.756,111.5]
[1645974483683,16.9831,89.85,89.761,111.5]
[1645974483911,16.9831,89.85,89.76,16.13]
[1645974483912,1.53303228,89.854,89.771,111.5]
[1645974484084,21.48760595,89.877,89.773,111.5]
[1645974484287,1.87365916,89.876,89.775,111.5]
[1645974484483,1.87365916,89.876,89.774,6.25]
[1645974484484,1.87365916,89.876,89.777,111.5]
[1645974484685,12.40141388,89.875,89.781,111.5]
[1645974484886,1.67362786,89.874,89.783,111.5]
[1645974485084,21.48760595,89.875,89.782,6.0]
[1645974485085,1.53358099,89.869,89.784,6.0]
[1645974485284,1.53358099,89.869,89.78,34.52109792]
[1645974485483,1.82122576,89.867,89.781,6.0]
[1645974485684,1.82122576,89.867,89.78,34.52109792]
[1645974485885,7.19978921,89.866,89.78,34.52109792]
[1645974486088,19.54216723,89.866,89.78,34.52109792]
[1645974486283,4.39318259,89.865,89.78,34.52109792]
[1645974486485,4.453,89.864,89.78,34.52109792]
[1645974486686,19.54216723,89.864,89.78,34.52109792]
[1645974486888,1.58586266,89.859,89.78,34.52109792]
[1645974487286,2.74678921,89.858,89.78,34.52109792]
[1645974489589,16.7125,89.85,89.756,24.1333]
[1645974489788,1.69066282,89.849,89.756,24.1333]
[1645974489988,4.453,89.848,89.756,24.1333]
[1645974490189,5.86248437,89.848,89.756,24.1333]
[1645974490389,2.74678921,89.848,89.756,24.1333]
[1645974490588,16.7161,89.83,89.756,24.1333]
[1645974490790,6.1662026,89.829,89.756,24.1333]
[1645974491090,7.20078921,89.829,89.756,24.1333]
[1645974491289,2.74678921,89.828,89.756,24.1333]
[1645974491490,4.454,89.827,89.757,35.12280537]
[1645974491891,2.74678921,89.826,89.757,35.12280537]
[1645974492191,4.454,89.825,89.757,35.12280537]
[1645974492589,1.5004762,89.809,89.757,35.12280537]
[1645974493391,2.74678921,89.824,89.758,24.661]
[1645974494292,2.74678921,89.84,89.758,136.161]
[1645974494497,1.57407232,89.844,89.76,111.5]
[1645974494693,1.57407232,89.844,89.762,111.5]
[1645974494894,6.0,89.843,89.764,111.5]
[1645974495095,1.42632134,89.863,89.766,111.5]
[1645974495301,1.47794186,89.861,89.768,111.5]
[1645974495497,16.713,89.85,89.77,111.5]
[1645974495698,1.41763192,89.849,89.771,23.4912]
[1645974496101,4.453,89.848,89.771,23.4912]
[1645974496301,4.453,89.85,89.771,23.4912]
[1645974496499,9.04706575,89.859,89.771,23.4912]
[1645974496699,12.40141388,89.849,89.771,23.4912]
[1645974496901,16.7153,89.84,89.771,23.4912]
[1645974497103,1.52240283,89.839,89.771,23.4912]
[1645974498402,24.9189,89.847,89.772,117.75]
[1645974498604,73.1106,89.883,89.773,4.453]
[1645974498806,12.34237802,89.876,89.774,0.25]
[1645974499018,1.50294736,89.875,89.775,111.5]
[1645974499215,1.50294736,89.875,89.777,111.5]
[1645974499415,1.50294736,89.875,89.778,117.75]
[1645974499618,12.34237802,89.874,89.778,111.75]
[1645974499816,12.34237802,89.874,89.779,6.0]
[1645974500018,1.52838668,89.873,89.78,0.25]
[1645974500222,4.453,89.872,89.78,0.25]
[1645974500423,23.4471,89.879,89.78,0.25]
[1645974500622,16.709,89.87,89.78,0.25]
[1645974500826,1.60054349,89.869,89.78,0.25]
[1645974501022,1.60054349,89.869,89.774,111.5]
[1645974501023,1.60054349,89.869,89.776,111.5]
[1645974501227,1.436026,89.878,89.781,2.74678921]
[1645974501431,1.436026,89.878,89.783,111.5]
[1645974501623,1.436026,89.878,89.785,111.5]
[1645974501827,1.436026,89.878,89.787,111.5]
[1645974502027,1.436026,89.878,89.788,117.75]
[1645974502228,1.436026,89.878,89.789,23.0718]
[1645974502424,6.0,89.877,89.79,6.25]
[1645974502823,18.40141388,89.877,89.79,6.25]
[1645974503024,1.52753236,89.876,89.791,111.5]
[1645974503223,1.52753236,89.876,89.793,111.5]
[1645974503424,1.52753236,89.876,89.795,111.5]
[1645974503623,1.52753236,89.876,89.797,111.5]
[1645974503824,1.52753236,89.876,89.798,117.75]
[1645974504024,1.52753236,89.876,89.798,111.5]
[1645974505026,1.52753236,89.876,89.796,111.5]
[1645974506026,6.0,89.875,89.796,111.5]
[1645974507430,6.0,89.875,89.795,24.6306]
[1645974507628,1.73480894,89.869,89.789,23.0718]
[1645974507827,1.73480894,89.869,89.79,24.6933]
[1645974508027,8.74678921,89.868,89.79,24.6933]
[1645974508228,4.452,89.867,89.789,23.0718]
[1645974508429,8.60055821,89.867,89.789,23.0718]
[1645974508726,2.74678921,89.866,89.789,23.0718]
[1645974508927,4.452,89.865,89.789,23.0718]
[1645974509328,2.74678921,89.864,89.789,23.0718]
[1645974509527,16.7128,89.85,89.789,23.0718]
[1645974509727,1.7030203,89.849,89.789,23.0718]
[1645974509930,4.44980951,89.849,89.789,23.0718]
[1645974510930,6.0,89.848,89.789,23.0718]
[1645974512730,1.58598654,89.869,89.789,23.0718]
[1645974512930,6.0,89.868,89.79,24.9602]
[1645974515333,6.0,89.868,89.791,0.25]
[1645974515530,6.0,89.868,89.791,111.5]
[1645974515730,1.58598654,89.869,89.793,111.5]
[1645974515930,1.85870889,89.878,89.795,111.5]
[1645974516130,1.85870889,89.878,89.797,111.5]
[1645974516330,1.85870889,89.878,89.798,117.5]
[1645974516531,1.85870889,89.878,89.798,111.5]
[1645974516731,1.85870889,89.878,89.799,6.0]
[1645974517633,1.85870889,89.878,89.793,111.5]
[1645974517831,1.85870889,89.878,89.795,111.5]
[1645974518031,1.85870889,89.878,89.797,111.5]
[1645974518232,1.85870889,89.878,89.799,111.5]
[1645974518434,1.85870889,89.878,89.801,111.5]
[1645974518631,1.85870889,89.878,89.803,111.5]
[1645974518832,6.0,89.877,89.805,111.5]
[1645974519034,6.0,89.877,89.808,140.9090551]
[1645974519233,6.0,89.877,89.809,0.25]
[1645974519635,6.0,89.877,89.808,29.4090551]
[1645974519833,6.0,89.877,89.806,24.7699]
[1645974520034,6.20805406,89.876,89.806,24.7699]
[1645974520834,6.20805406,89.876,89.807,30.47940748]
[1645974521034,1.75605406,89.876,89.807,30.47940748]
[1645974521235,4.452,89.875,89.807,30.47940748]
[1645974521534,16.7089,89.87,89.807,30.47940748]
[1645974522033,1.56511676,89.869,89.807,30.47940748]
[1645974522634,1.57222532,89.878,89.807,30.47940748]
[1645974523936,6.0,89.877,89.807,30.47940748]
[1645974524136,6.0,89.877,89.806,24.7699]
[1645974524335,7.86502969,89.877,89.806,24.7699]
[1645974524535,16.7089,89.87,89.806,24.7699]
[1645974524736,1.7854787,89.869,89.806,24.7699]
[1645974526537,1.7854787,89.869,89.807,111.5]
[1645974526736,6.0,89.877,89.808,117.5]
[1645974526938,5.5,89.877,89.808,117.5]
[1645974531546,5.5,89.877,89.808,6.0]
[1645974531745,5.5,89.877,89.806,24.7699]
[1645974536955,4.452,89.876,89.806,24.7699]
[1645974537553,16.7089,89.87,89.806,24.7699]
[1645974537753,1.5639443,89.869,89.806,24.7699]
[1645974540875,6.0,89.868,89.806,24.7699]
[1645974543479,6.0,89.868,89.807,111.5]
[1645974543678,1.46708972,89.878,89.807,111.5]
[1645974543977,1.46708972,89.878,89.808,0.25]
[1645974544376,6.0,89.877,89.808,0.25]
[1645974545277,6.0,89.877,89.806,24.7699]
[1645974545479,6.0,89.877,89.807,111.5]
[1645974545876,2.74678921,89.876,89.806,24.7699]
[1645974546278,6.0,89.877,89.806,24.7699]
[1645974546679,6.0,89.877,89.807,111.5]
[1645974547278,6.0,89.877,89.806,24.7699]
[1645974548080,6.0,89.877,89.807,111.5]
[1645974548993,6.0,89.877,89.806,24.7699]
[1645974549190,2.74678921,89.876,89.806,24.7699]
[1645974549590,23.29303653,89.876,89.806,24.7699]
[1645974549990,4.21571817,89.875,89.806,24.7699]
[1645974550389,2.74678921,89.874,89.806,24.7699]
[1645974550592,1.4275798,89.869,89.806,24.7699]
[1645974550790,6.0,89.868,89.806,24.7699]